bitfinex/quotes_BTCUSD_20251214
["timestamp","ask_amount","ask_price","bid_price","bid_amount"]
[1765752130916,0.0311592,88102.0,88097.0,0.01135112]
[1765752130917,0.00011585,88102.0,88100.0,0.01546]
[1765752131112,0.00011585,88102.0,88101.0,0.01546]
[1765752131536,0.00111585,88102.0,88101.0,0.26522217]
[1765752131961,0.00211585,88102.0,88101.0,0.26522217]
[1765752132356,0.00311585,88102.0,88101.0,0.26522217]
[1765752132836,0.00111585,88102.0,88098.0,0.01135099]
[1765752133041,0.01135112,88097.0,88094.0,0.01135151]
[1765752133254,0.03948841,88096.0,88093.0,0.01135163]
[1765752133459,0.02813716,88096.0,88093.0,0.2383829]
[1765752133659,0.35073189,88101.0,88096.0,0.01135125]
[1765752133865,0.01135099,88098.0,88093.0,0.01135163]
[1765752134081,0.01135112,88097.0,88094.0,0.01135151]
[1765752134290,0.01135099,88098.0,88094.0,0.01135151]
[1765752134942,0.01135125,88096.0,88093.0,0.01135163]
[1765752135400,0.01135125,88096.0,88082.0,0.01223]
[1765752135401,0.01135318,88081.0,88070.0,0.2270916]
[1765752135620,0.01135408,88074.0,88070.0,0.0113546]
[1765752135840,0.01135421,88073.0,88070.0,0.0113546]
[1765752136074,0.01135421,88073.0,88068.0,0.01135486]
[1765752136282,0.01135434,88072.0,88068.0,0.01135486]
[1765752136491,0.01135434,88072.0,88069.0,0.01135473]
[1765752136725,0.01135421,88073.0,88070.0,0.002]
[1765752136941,0.01135434,88072.0,88068.0,0.01135486]
[1765752137151,0.23844577,88071.0,88066.0,0.01135512]
[1765752137563,0.01135473,88069.0,88066.0,0.01135512]
[1765752137819,0.01808,88068.0,88066.0,0.01135512]
[1765752138882,0.01808,88068.0,88062.0,0.24346632]
[1765752138883,0.01135512,88066.0,88062.0,0.01635563]
[1765752139101,0.11236763,88063.0,88062.0,0.00538557]
[1765752140519,0.11636763,88063.0,88062.0,0.00538557]
[1765752142013,0.12436763,88063.0,88062.0,0.00538557]
[1765752142194,0.004,88063.0,88062.0,0.02084557]
[1765752142790,0.008,88063.0,88062.0,0.02084557]
[1765752143414,0.008,88063.0,88062.0,0.04359557]
[1765752144499,0.008,88063.0,88062.0,0.00538557]
[1765752148882,0.12036763,88063.0,88062.0,0.00538557]
[1765752150226,0.008,88063.0,88062.0,0.00538557]
[1765752150349,0.12036763,88063.0,88062.0,0.00538557]
[1765752150547,0.008,88063.0,88062.0,0.00538557]
[1765752151279,0.03609445,88063.0,88062.0,0.00538557]
[1765752152102,0.008,88063.0,88062.0,0.04338557]
[1765752152266,0.008,88063.0,88062.0,0.05504557]
[1765752152473,0.02604,88063.0,88062.0,0.05504557]
[1765752156993,0.008,88063.0,88062.0,0.05504557]
[1765752157200,0.02604,88063.0,88062.0,0.05504557]
[1765752158618,0.008,88063.0,88062.0,0.16845576]
[1765752159380,0.008,88063.0,88062.0,0.28076147]
[1765752159624,0.004,88063.0,88062.0,0.28076147]
[1765752159936,0.01135151,88094.0,88073.0,0.22708421]
[1765752160143,0.01135151,88094.0,88093.0,0.02697]
[1765752160341,0.04617716,88094.0,88093.0,0.02697]
[1765752160495,0.04617716,88094.0,88093.0,0.04966]
[1765752161458,0.01804,88094.0,88093.0,0.04966]
[1765752162077,0.02004,88094.0,88093.0,0.04966]
[1765752163033,0.02004,88094.0,88093.0,0.05066]
[1765752163237,0.02104,88094.0,88093.0,0.05066]
[1765752168033,0.003,88094.0,88093.0,0.05066]
[1765752169619,0.003,88094.0,88093.0,0.16296571]
[1765752169959,0.003,88094.0,88093.0,0.45366571]
[1765752170780,0.002,88094.0,88093.0,0.45266571]
[1765752171010,0.003,88094.0,88093.0,0.45466571]
[1765752171228,0.001,88094.0,88093.0,0.45466571]
[1765752171413,0.01134841,88118.0,88105.0,0.11230571]
[1765752171593,0.01134854,88117.0,88114.0,0.12396571]
[1765752171814,0.01134854,88117.0,88114.0,0.01166]
[1765752172030,0.01134854,88117.0,88116.0,0.01531]
[1765752172345,0.01134854,88117.0,88116.0,0.038]
[1765752172557,0.00011588,88118.0,88116.0,0.37727839]
[1765752172768,0.00011588,88118.0,88117.0,0.038]
[1765752173416,0.00011588,88118.0,88117.0,0.15030571]
[1765752173614,0.00011588,88118.0,88117.0,0.44100571]
[1765752173957,0.00011588,88118.0,88117.0,0.4910241]
[1765752174090,0.00311588,88118.0,88117.0,0.5100641]
[1765752175115,0.00099588,88118.0,88117.0,0.5120641]
[1765752175330,0.01804,88142.0,88141.0,0.11230571]
[1765752175612,0.01804,88142.0,88141.0,0.12761571]
[1765752175782,0.01804,88142.0,88141.0,0.15030571]
[1765752176156,0.01134455,88148.0,88145.0,0.11230571]
[1765752176474,0.23835162,88148.0,88147.0,0.02777]
[1765752176673,0.00011594,88148.0,88147.0,0.02777]
[1765752176908,0.22700707,88148.0,88147.0,0.05086]
[1765752177433,0.22800707,88148.0,88147.0,0.05086]
[1765752178371,0.23935162,88148.0,88145.0,0.001]
[1765752178642,0.22690658,88142.0,88141.0,0.001]
[1765752178878,0.23826446,88138.0,88135.0,0.01246]
[1765752179109,0.23826446,88138.0,88137.0,0.11230571]
[1765752179352,0.23826446,88138.0,88135.0,0.01246]
[1765752179559,0.23826446,88138.0,88137.0,0.01588]
[1765752179732,0.21326446,88138.0,88137.0,0.01588]
[1765752179961,0.01134558,88140.0,88137.0,0.03897]
[1765752180113,0.01134558,88140.0,88139.0,0.01588]
[1765752180316,0.01134558,88140.0,88139.0,0.12818571]
[1765752180519,0.01134532,88142.0,88141.0,0.11230571]
[1765752180728,0.00011594,88148.0,88147.0,0.11230571]
[1765752180942,0.00011594,88148.0,88147.0,0.4813641]
[1765752181121,0.00011594,88148.0,88147.0,0.45443571]
[1765752181464,0.00011594,88148.0,88147.0,0.34213]
[1765752181985,0.00011594,88148.0,88147.0,0.05143]
[1765752182360,0.00111594,88148.0,88147.0,0.05343]
[1765752182774,0.00111594,88148.0,88147.0,0.05143]
[1765752182775,0.00011594,88148.0,88147.0,0.05143]
[1765752182974,0.00211594,88148.0,88147.0,0.16784019]
[1765752183191,0.00111594,88148.0,88147.0,0.16684019]
[1765752183402,0.00011594,88148.0,88147.0,0.16484019]
[1765752183702,0.00311594,88148.0,88147.0,0.16584019]
[1765752183837,0.02215594,88148.0,88147.0,0.16684019]
[1765752192581,0.00411594,88148.0,88147.0,0.16684019]
[1765752192893,0.00411594,88148.0,88147.0,0.2791459]
[1765752200444,0.00411594,88148.0,88147.0,0.16684019]
[1765752205615,0.00572881,88148.0,88147.0,0.11341019]
[1765752205768,0.00572881,88148.0,88147.0,0.12929019]
[1765752207070,0.00572881,88148.0,88147.0,0.3561839]
[1765752207272,0.00572881,88148.0,88147.0,0.12929019]
[1765752207489,0.00572881,88148.0,88147.0,0.16520019]
[1765752207893,0.00572881,88148.0,88147.0,0.50440389]
[1765752208297,0.00411594,88148.0,88147.0,0.50440389]
[1765752209390,0.00411594,88148.0,88147.0,0.3920939]
[1765752210269,0.00411594,88148.0,88147.0,0.50440389]
[1765752210905,0.00411594,88148.0,88147.0,0.3920939]
[1765752214177,0.00411594,88148.0,88147.0,0.50440389]
[1765752215877,0.00411594,88148.0,88147.0,0.3920939]
[1765752216260,0.00411594,88148.0,88147.0,0.50440389]
[1765752216461,0.00411594,88148.0,88147.0,0.84512228]
[1765752216865,0.01134108,88175.0,88147.0,0.84512228]
[1765752216866,0.018,88171.0,88168.0,0.23817919]
[1765752217094,0.01838638,88171.0,88168.0,0.23817919]
[1765752217330,0.01838638,88171.0,88170.0,0.01804]
[1765752217531,0.01838638,88171.0,88170.0,0.04187]
[1765752218315,0.01838638,88171.0,88170.0,0.01804]
[1765752218526,0.01838638,88171.0,88170.0,0.07778]
[1765752219137,0.02038638,88171.0,88170.0,0.07878]
[1765752219313,0.00338638,88171.0,88170.0,0.07878]
[1765752219530,0.00338638,88171.0,88170.0,0.19219019]
[1765752219916,0.00238638,88171.0,88170.0,0.19219019]
[1765752220116,0.00338638,88171.0,88170.0,0.19319019]
[1765752222258,0.00338638,88171.0,88170.0,0.30550018]
[1765752224544,0.00338638,88171.0,88170.0,0.59620018]
[1765752224890,0.00338638,88171.0,88170.0,0.64621857]
[1765752225642,0.00238638,88171.0,88170.0,0.64521857]
[1765752225856,0.00038638,88171.0,88170.0,0.64421857]
[1765752226069,0.00138638,88171.0,88170.0,0.64721857]
[1765752226319,0.00238638,88171.0,88170.0,0.64921857]
[1765752227097,0.0184,88190.0,88189.0,0.33909564]
[1765752227268,0.01851587,88190.0,88189.0,0.36292564]
[1765752227475,0.01851587,88190.0,88189.0,0.28652565]
[1765752227678,0.00051587,88190.0,88189.0,0.39883564]
[1765752228277,0.00051587,88190.0,88189.0,0.39983564]
[1765752228506,0.00351587,88190.0,88189.0,0.39983564]
[1765752228918,0.00551587,88190.0,88189.0,0.40083564]
[1765752229115,0.00551587,88190.0,88189.0,0.69153564]
[1765752229535,0.00351587,88190.0,88189.0,0.69053564]
[1765752229899,0.00451587,88190.0,88189.0,0.69253564]
[1765752230323,0.00351587,88190.0,88189.0,0.74055403]
[1765752230520,0.0004,88191.0,88190.0,0.45302838]
[1765752230725,0.0004,88191.0,88190.0,0.46274999]
[1765752230927,0.00201287,88191.0,88189.0,0.001]
[1765752231153,0.00201287,88191.0,88188.0,0.13145019]
[1765752231576,0.001,88190.0,88189.0,0.003]
[1765752231698,0.001,88190.0,88189.0,0.004]
[1765752232088,0.001,88190.0,88189.0,0.006]
[1765752232302,0.00301287,88191.0,88189.0,0.002]
[1765752232503,0.00301287,88191.0,88182.0,0.05395]
[1765752232504,0.01133979,88185.0,88182.0,0.05395]
[1765752232865,0.01133953,88187.0,88182.0,0.29209148]
[1765752233068,0.01133941,88188.0,88185.0,0.01133979]
[1765752233268,0.00161287,88188.0,88186.0,0.01133966]
[1765752234026,0.00161287,88188.0,88187.0,0.05974]
[1765752234177,0.0014,88191.0,88188.0,0.23812763]
[1765752234384,0.0014,88191.0,88190.0,0.02383]
[1765752234591,0.0004,88191.0,88190.0,0.13613999]
[1765752234785,0.0004,88191.0,88190.0,0.17204999]
[1765752235029,0.0004,88191.0,88190.0,0.05974]
[1765752235324,0.0004,88191.0,88190.0,0.17204999]
[1765752235450,0.0014,88191.0,88190.0,0.17204999]
[1765752235647,0.0014,88191.0,88190.0,0.17338627]
[1765752236059,0.0024,88191.0,88190.0,0.17438627]
[1765752236456,0.0024,88191.0,88190.0,0.17304999]
[1765752236683,0.0014,88191.0,88190.0,0.17304999]
[1765752236884,0.0014,88191.0,88190.0,0.17404999]
[1765752239026,0.0014,88191.0,88190.0,0.06174]
[1765752239409,0.0014,88191.0,88190.0,0.28852308]
[1765752240011,0.0014,88191.0,88190.0,0.02583]
[1765752240212,0.00301287,88191.0,88190.0,0.002]
[1765752240996,0.00301287,88191.0,88190.0,0.05688]
[1765752241194,0.0014,88191.0,88190.0,0.05688]
[1765752241877,0.0014,88191.0,88190.0,0.16918999]
[1765752243098,0.0014,88191.0,88190.0,0.05688]
[1765752243298,0.01584653,88202.0,88195.0,0.01133851]
[1765752243516,0.01584653,88202.0,88201.0,0.15289019]
[1765752243771,0.02718414,88202.0,88201.0,0.15289019]
[1765752244359,0.02818414,88202.0,88201.0,0.15289019]
[1765752244559,0.02918414,88202.0,88201.0,0.15289019]
[1765752244802,0.002,88202.0,88201.0,0.07229]
[1765752244991,0.001,88202.0,88201.0,0.07229]
[1765752245196,0.003,88202.0,88201.0,0.18559999]
[1765752246142,0.003,88202.0,88201.0,0.07329]
[1765752246575,0.002,88202.0,88201.0,0.01841]
[1765752246780,0.003,88202.0,88201.0,0.02241]
[1765752246983,0.22675479,88201.0,88200.0,0.11341019]
[1765752247809,0.22675222,88202.0,88200.0,0.11341019]
[1765752248226,0.001,88202.0,88201.0,0.002]
[1765752248666,0.01133748,88203.0,88200.0,0.11541019]
[1765752248874,0.22675222,88202.0,88200.0,0.11541019]
[1765752249053,0.01133748,88203.0,88201.0,0.03281]
[1765752249250,0.01133748,88203.0,88200.0,0.11741019]
[1765752249762,0.01133709,88206.0,88202.0,0.03340761]
[1765752249966,0.01133709,88206.0,88205.0,0.02207]
[1765752250207,0.01133658,88210.0,88205.0,0.02207]
[1765752250407,0.01133671,88209.0,88206.0,0.04414709]
[1765752250615,0.23807151,88209.0,88206.0,0.03281]
[1765752250823,0.01133684,88208.0,88207.0,0.03281]
[1765752251270,0.01133684,88208.0,88205.0,0.01233722]
[1765752251428,0.01133684,88208.0,88207.0,0.05488]
[1765752252264,0.001,88208.0,88207.0,0.16818999]
[1765752252824,0.001,88208.0,88207.0,0.16918999]
[1765752253664,0.001,88208.0,88207.0,0.002]
[1765752255088,0.2277368,88208.0,88207.0,0.002]
[1765752255508,0.22934967,88208.0,88207.0,0.002]
[1765752255637,0.24357967,88208.0,88207.0,0.002]
[1765752258388,0.3697673,88208.0,88207.0,0.002]
[1765752258571,0.3559473,88208.0,88207.0,0.002]
[1765752258777,0.25739967,88208.0,88207.0,0.002]
[1765752260444,0.3697673,88208.0,88207.0,0.002]
[1765752260645,0.25739967,88208.0,88207.0,0.002]
[1765752262607,0.24357967,88208.0,88207.0,0.002]
[1765752263025,0.25685967,88208.0,88207.0,0.002]
[1765752263649,0.24357967,88208.0,88207.0,0.002]
[1765752264343,0.25672967,88208.0,88207.0,0.002]
[1765752268210,0.25605967,88208.0,88207.0,0.002]
[1765752269026,0.3684273,88208.0,88207.0,0.002]
[1765752269437,0.25605967,88208.0,88207.0,0.001]
[1765752269643,0.25505967,88208.0,88207.0,0.001]
[1765752269987,0.25505967,88208.0,88201.0,0.01133773]
[1765752269988,0.01133735,88204.0,88201.0,0.01133773]
[1765752270160,0.018,88203.0,88194.0,0.22677134]
[1765752270413,0.02933748,88203.0,88199.0,0.01133799]
[1765752271406,0.02933748,88203.0,88174.0,0.01134121]
[1765752271407,0.23815315,88179.0,88174.0,0.01134121]
[1765752271542,0.018,88181.0,88175.0,0.22682166]
[1765752271745,0.01907,88176.0,88175.0,0.22682166]
[1765752272178,0.03116,88176.0,88175.0,0.22682166]
[1765752272751,0.01907,88176.0,88175.0,0.22782166]
[1765752272980,0.02007,88176.0,88175.0,0.22782166]
[1765752273395,0.03189,88176.0,88175.0,0.22782166]
[1765752273908,0.03189,88176.0,88175.0,0.22882166]
[1765752274323,0.00798,88176.0,88175.0,0.22882166]
[1765752274482,0.001,88176.0,88175.0,0.28046166]
[1765752274733,0.001,88176.0,88175.0,0.39277165]
[1765752274940,0.001,88176.0,88175.0,0.28046166]
[1765752275142,0.001,88176.0,88175.0,0.39277165]
[1765752275653,0.018,88192.0,88175.0,0.39277165]
[1765752275654,0.018,88192.0,88191.0,0.22678051]
[1765752276984,0.019,88192.0,88191.0,0.22778051]
[1765752277337,0.02,88192.0,88191.0,0.22778051]
[1765752277978,0.02,88192.0,88191.0,0.001]
[1765752278151,0.02,88192.0,88191.0,0.05264]
[1765752280272,0.02,88192.0,88191.0,0.05322093]
[1765752282350,0.002,88192.0,88191.0,0.05322093]
[1765752282886,0.002,88192.0,88191.0,0.16553092]
[1765752283486,0.001,88192.0,88191.0,0.16553092]
[1765752283904,0.001,88192.0,88191.0,0.16653092]
[1765752284411,0.001,88192.0,88191.0,0.17594303]
[1765752284615,0.00161287,88208.0,88205.0,0.01133722]
[1765752284842,0.00161287,88208.0,88207.0,0.03659]
[1765752285292,0.00161287,88208.0,88207.0,0.06781]
[1765752286109,0.00461287,88208.0,88207.0,0.03759]
[1765752286322,0.00861287,88208.0,88207.0,0.03859]
[1765752286460,0.00861287,88208.0,88207.0,0.06981]
[1765752286661,0.007,88208.0,88207.0,0.06981]
[1765752287631,0.003,88208.0,88207.0,0.06881]
[1765752287807,0.2307368,88208.0,88207.0,0.01817]
[1765752288056,0.2307368,88208.0,88207.0,0.002]
[1765752288429,0.2376468,88208.0,88207.0,0.001]
[1765752288630,0.2475568,88208.0,88207.0,0.002]
[1765752288913,0.2655568,88208.0,88207.0,0.002]
[1765752290054,0.26716967,88208.0,88207.0,0.002]
[1765752290460,0.3795373,88208.0,88207.0,0.002]
[1765752292156,0.26716967,88208.0,88207.0,0.002]
[1765752292376,0.3795373,88208.0,88207.0,0.002]
[1765752292804,0.3795373,88208.0,88207.0,0.001]
[1765752293239,0.3815373,88208.0,88207.0,0.001]
[1765752293454,0.01133799,88199.0,88194.0,0.01133863]
[1765752293657,0.01133825,88197.0,88194.0,0.01133863]
[1765752293817,0.01133825,88197.0,88193.0,0.23811387]
[1765752294195,0.01133825,88197.0,88194.0,0.01133863]
[1765752294626,0.02933825,88197.0,88194.0,0.01233863]
[1765752294799,0.02933825,88197.0,88194.0,0.01433863]
[1765752295003,0.018,88197.0,88194.0,0.01433863]
[1765752295209,0.018,88197.0,88194.0,0.01333863]
[1765752295411,0.019,88197.0,88194.0,0.01433863]
[1765752296932,0.00892,88195.0,88194.0,0.003]
[1765752297133,0.03033825,88197.0,88194.0,0.003]
[1765752297334,0.019,88197.0,88194.0,0.01433863]
[1765752297734,0.019,88197.0,88194.0,0.01333863]
[1765752297934,0.018,88197.0,88194.0,0.01333863]
[1765752298138,0.001,88195.0,88194.0,0.01533863]
[1765752298340,0.00967,88195.0,88194.0,0.004]
[1765752298545,0.01834,88195.0,88194.0,0.004]
[1765752298757,0.01734,88195.0,88194.0,0.002]
[1765752299112,0.23811154,88194.0,88191.0,0.01133902]
[1765752299308,0.00855,88195.0,88191.0,0.01133902]
[1765752299510,0.01988851,88195.0,88194.0,0.002]
[1765752300039,0.02843851,88195.0,88194.0,0.004]
[1765752300225,0.01988851,88195.0,88194.0,0.004]
[1765752300425,0.01988851,88195.0,88194.0,0.002]
[1765752301071,0.02933825,88197.0,88193.0,0.01133876]
[1765752301344,0.00883,88211.0,88193.0,0.01133876]
[1765752301345,0.01133735,88204.0,88200.0,0.01133786]
[1765752301489,0.01133709,88206.0,88203.0,0.01133748]
[1765752301694,0.01133684,88208.0,88203.0,0.01133748]
[1765752301695,0.01133696,88207.0,88204.0,0.01133735]
[1765752301919,0.01133696,88207.0,88204.0,0.04064735]
[1765752302130,0.01133696,88207.0,88206.0,0.03621]
[1765752302505,0.01133696,88207.0,88206.0,0.06552]
[1765752303314,0.01333696,88207.0,88206.0,0.06552]
[1765752304329,0.01533696,88207.0,88206.0,0.06652]
[1765752305735,0.004,88207.0,88206.0,0.29326194]
[1765752305938,0.004,88207.0,88206.0,0.06652]
[1765752307321,0.004,88207.0,88206.0,0.17882999]
[1765752308095,0.0004,88211.0,88208.0,0.01133684]
[1765752308292,0.0004,88211.0,88210.0,0.24712018]
[1765752308642,0.0004,88211.0,88210.0,0.27643018]
[1765752309476,0.0004,88211.0,88210.0,0.27843018]
[1765752310400,0.0014,88211.0,88210.0,0.27943018]
[1765752310986,0.0014,88211.0,88210.0,0.57013018]
[1765752311851,0.0014,88211.0,88210.0,0.56813018]
[1765752312228,0.0024,88211.0,88210.0,0.57013018]
[1765752312577,0.0014,88211.0,88210.0,0.56913018]
[1765752312796,0.0024,88211.0,88210.0,0.57113018]
[1765752314460,0.0024,88211.0,88210.0,0.58594018]
[1765752314656,0.0024,88211.0,88210.0,0.52364858]
[1765752314894,0.0024,88211.0,88210.0,0.63595857]
[1765752315317,0.0024,88211.0,88210.0,0.52364858]
[1765752315514,0.0024,88211.0,88210.0,0.63595857]
[1765752316275,0.00859263,88233.0,88230.0,0.01133401]
[1765752316519,0.00870848,88233.0,88232.0,0.03621]
[1765752316904,0.00870848,88233.0,88232.0,0.06552]
[1765752317445,0.01170848,88233.0,88232.0,0.06552]
[1765752317802,0.01370848,88233.0,88232.0,0.03621]
[1765752319181,0.01070848,88233.0,88232.0,0.03621]
[1765752319606,0.01270848,88233.0,88232.0,0.03721]
[1765752319810,0.01270848,88233.0,88232.0,0.06652]
[1765752320649,0.01270848,88233.0,88232.0,0.03721]
[1765752321386,0.01270848,88233.0,88232.0,0.06652]
[1765752322459,0.01432135,88233.0,88232.0,0.001]
[1765752322614,0.01432135,88233.0,88232.0,0.05171]
[1765752322819,0.01432135,88233.0,88232.0,0.001]
[1765752323134,0.01432135,88233.0,88232.0,0.05171]
[1765752323342,0.01432135,88233.0,88232.0,0.0224]
[1765752323521,0.01432135,88233.0,88232.0,0.05171]
[1765752323729,0.01270848,88233.0,88232.0,0.16401999]
[1765752328031,0.01270848,88233.0,88232.0,0.05171]
[1765752328253,0.01270848,88233.0,88232.0,0.16401999]
[1765752328451,0.01270848,88233.0,88232.0,0.05171]
[1765752328601,0.01270848,88233.0,88232.0,0.27838512]
[1765752330351,0.01270848,88233.0,88232.0,0.39069511]
[1765752333554,0.018,88241.0,88240.0,0.11230999]
[1765752333774,0.018,88241.0,88240.0,0.13235999]
[1765752333980,0.018,88241.0,88240.0,0.16191999]
[1765752334610,0.004,88241.0,88240.0,0.16291999]
[1765752334971,0.004,88241.0,88240.0,0.05061]
[1765752335191,0.004,88241.0,88240.0,0.16291999]
[1765752335408,0.0004,88245.0,88244.0,0.11230999]
[1765752335600,0.0004,88245.0,88244.0,0.13235999]
[1765752335784,0.0004,88245.0,88244.0,0.04961]
[1765752336230,0.00044813,88245.0,88244.0,0.04961]
[1765752336742,0.00344813,88245.0,88244.0,0.04961]
[1765752337246,0.00544813,88245.0,88244.0,0.05061]
[1765752338031,0.00544813,88245.0,88244.0,0.16291999]
[1765752339049,0.00544813,88245.0,88244.0,0.05061]
[1765752339391,0.00244813,88245.0,88244.0,0.16291999]
[1765752339611,0.00244813,88245.0,88244.0,0.16391999]
[1765752339971,0.00244813,88245.0,88244.0,0.16291999]
[1765752339972,0.00044813,88245.0,88244.0,0.16291999]
[1765752340383,0.00144813,88245.0,88244.0,0.16291999]
[1765752340597,0.00144813,88245.0,88244.0,0.16402019]
[1765752342272,0.00144813,88245.0,88244.0,0.27633018]
[1765752342476,0.00144813,88245.0,88244.0,0.16402019]
[1765752342942,0.00144813,88245.0,88244.0,0.27633018]
[1765752347054,0.00144813,88245.0,88244.0,0.16402019]
[1765752347257,0.00144813,88245.0,88244.0,0.27633018]
[1765752348297,0.00144813,88245.0,88244.0,0.16402019]
[1765752348486,0.00144813,88245.0,88244.0,0.13446019]
[1765752348899,0.00144813,88245.0,88244.0,0.11441019]
[1765752349271,0.00144813,88245.0,88244.0,0.13446019]
[1765752349477,0.00144813,88245.0,88244.0,0.16402019]
[1765752350818,0.00144813,88245.0,88244.0,0.13446019]
[1765752351247,0.00144813,88245.0,88244.0,0.16402019]
[1765752352503,0.00722813,88245.0,88244.0,0.001]
[1765752352733,0.008841,88245.0,88244.0,0.001]
[1765752353156,0.005951,88245.0,88244.0,0.001]
[1765752357190,0.23259273,88245.0,88244.0,0.001]
[1765752358438,0.24392481,88245.0,88242.0,0.01133247]
[1765752358654,0.00226,88243.0,88241.0,0.0113326]
[1765752358795,0.00226,88242.0,88241.0,0.0113326]
[1765752359278,0.01133221,88244.0,88241.0,0.0113326]
[1765752359491,0.01133221,88244.0,88240.0,0.23798703]
[1765752359632,0.01133234,88243.0,88239.0,0.01133285]
[1765752359839,0.01333234,88243.0,88241.0,0.001]
[1765752360040,0.001,88242.0,88241.0,0.001]
[1765752360220,0.01133234,88243.0,88240.0,0.01133272]
[1765752360420,0.00205,88240.0,88238.0,0.18689152]
[1765752360625,0.02206,88239.0,88238.0,0.18689152]
[1765752361357,0.24871714,88239.0,88238.0,0.18689152]
[1765752363078,0.24971714,88239.0,88238.0,0.18789152]
[1765752363700,0.24871714,88239.0,88238.0,0.18689152]
[1765752364917,0.25071714,88239.0,88238.0,0.18689152]
[1765752365145,0.25371714,88239.0,88238.0,0.18789152]
[1765752365559,0.36608477,88239.0,88238.0,0.18789152]
[1765752367037,0.70680316,88239.0,88238.0,0.18789152]
[1765752367463,0.74083603,88239.0,88238.0,0.18789152]
[1765752368131,0.6234684,88239.0,88238.0,0.18689152]
[1765752368342,0.54636714,88239.0,88238.0,0.18789152]
[1765752368542,0.24670714,88239.0,88238.0,0.18889152]
[1765752368754,0.25361714,88239.0,88238.0,0.18789152]
[1765752368950,0.24461714,88239.0,88238.0,0.18689152]
[1765752369160,0.27461714,88239.0,88238.0,0.18989152]
[1765752369369,0.03296,88239.0,88238.0,0.18889152]
[1765752369781,0.02696,88239.0,88238.0,0.18789152]
[1765752369986,0.018,88239.0,88238.0,0.21742152]
[1765752370193,0.018,88239.0,88238.0,0.23589152]
[1765752370399,0.018,88239.0,88238.0,0.18889152]
[1765752370650,0.04613716,88239.0,88238.0,0.18889152]
[1765752370839,0.009,88239.0,88238.0,0.18789152]
[1765752371269,0.002,88239.0,88238.0,0.18689152]
[1765752371615,0.005,88239.0,88238.0,0.18789152]
[1765752371821,0.005,88239.0,88238.0,0.20636152]
[1765752372067,0.005,88239.0,88238.0,0.23489152]
[1765752372395,0.005,88239.0,88238.0,0.57386122]
[1765752373120,0.002,88239.0,88238.0,0.57286122]
[1765752373964,0.01178021,88245.0,88241.0,0.0113326]
[1765752374166,0.01178021,88245.0,88243.0,0.11341019]
[1765752374356,0.01178021,88245.0,88239.0,0.11230999]
[1765752374357,0.22665457,88240.0,88238.0,0.18689152]
[1765752374684,0.02108263,88239.0,88238.0,0.18789152]
[1765752375036,0.01133311,88237.0,88233.0,0.01133362]
[1765752375251,0.01133311,88237.0,88230.0,0.23801332]
[1765752375252,0.01133324,88236.0,88231.0,0.01133388]
[1765752375455,0.01133337,88235.0,88231.0,0.01133388]
[1765752375584,0.03133472,88235.0,88232.0,0.01133375]
[1765752375785,0.01133337,88235.0,88232.0,0.01133375]
[1765752376195,0.01133337,88235.0,88233.0,0.001]
[1765752376400,0.01133324,88236.0,88234.0,0.01847]
[1765752376581,0.01133324,88236.0,88235.0,0.01847]
[1765752376787,0.01896,88237.0,88235.0,0.01847]
[1765752377023,0.001,88237.0,88236.0,0.27272018]
[1765752377231,0.001,88237.0,88236.0,0.16041019]
[1765752377644,0.001,88239.0,88238.0,0.11230999]
[1765752377856,0.00044813,88245.0,88243.0,0.11230999]
[1765752378071,0.00044813,88245.0,88244.0,0.2591843]
[1765752378287,0.00044813,88245.0,88244.0,0.2877143]
[1765752380311,0.00044813,88245.0,88244.0,0.2897143]
[1765752381405,0.00144813,88245.0,88244.0,0.2917143]
[1765752383644,0.00144813,88245.0,88244.0,0.40402429]
[1765752386480,0.00144813,88245.0,88244.0,0.2917143]
[1765752387103,0.00144813,88245.0,88244.0,0.2306443]
[1765752389497,0.00099653,88245.0,88244.0,0.2747843]
[1765752390719,0.00099653,88245.0,88244.0,0.38709429]
[1765752398862,0.00099653,88245.0,88244.0,0.40505429]
[1765752399708,0.00099653,88245.0,88244.0,0.38709429]
[1765752402386,0.00099653,88245.0,88244.0,0.2747843]
[1765752402543,0.00099653,88245.0,88244.0,0.38709429]
[1765752404374,0.0004,88256.0,88255.0,0.11230999]
[1765752404748,0.0004,88256.0,88255.0,0.01781]
[1765752404925,0.0004,88256.0,88254.0,0.35275881]
[1765752405702,0.0004,88256.0,88255.0,0.04414]
[1765752406516,0.0014,88256.0,88255.0,0.04514]
[1765752407190,0.0004,88256.0,88255.0,0.04414]
[1765752407985,0.0014,88256.0,88255.0,0.15644999]
[1765752408671,0.0014,88256.0,88255.0,0.04414]
[1765752409206,0.0004,88256.0,88255.0,0.04414]
[1765752409841,0.0014,88256.0,88255.0,0.04514]
[1765752410594,0.0014,88256.0,88255.0,0.15744999]
[1765752410906,0.0014,88256.0,88255.0,0.17015676]
[1765752411127,0.0014,88256.0,88255.0,0.15744999]
[1765752411775,0.0014,88256.0,88255.0,0.04514]
[1765752423394,0.0014,88256.0,88255.0,0.01881]
[1765752423795,0.0014,88256.0,88255.0,0.001]
[1765752426307,0.01133028,88259.0,88256.0,0.19582566]
[1765752426643,0.01133016,88260.0,88257.0,0.01133054]
[1765752428041,0.01133016,88260.0,88256.0,0.19582566]
[1765752428042,0.23954643,88260.0,88256.0,0.19582566]
[1765752428229,0.01294303,88260.0,88256.0,0.19582566]
[1765752428679,0.001,88259.0,88256.0,0.19682566]
[1765752429045,0.01294303,88260.0,88256.0,0.19582566]
[1765752429245,0.01294303,88260.0,88257.0,0.01133054]
[1765752429453,0.01394303,88260.0,88257.0,0.01133054]
[1765752430185,0.01294303,88260.0,88257.0,0.01133054]
[1765752430429,0.01394303,88260.0,88257.0,0.01084817]
[1765752432830,0.014329,88260.0,88257.0,0.01084817]
[1765752433576,0.11236763,88257.0,88256.0,0.18449499]
[1765752434021,0.22660835,88258.0,88256.0,0.18449499]
[1765752434351,0.11236763,88257.0,88256.0,0.18449499]
[1765752435941,0.11436763,88257.0,88256.0,0.18449499]
[1765752436062,0.11536763,88257.0,88256.0,0.18549499]
[1765752436692,0.11436763,88257.0,88256.0,0.18449499]
[1765752437135,0.11736763,88257.0,88256.0,0.18549499]
[1765752438102,0.005,88257.0,88256.0,0.18549499]
[1765752439127,0.03313716,88257.0,88256.0,0.18549499]